bitfinex-derivatives/quotes_BTCF0:USTF0_20250609
["timestamp","ask_amount","ask_price","bid_price","bid_amount"]
[1749512361352,0.99209743,110130.0,110120.0,0.6793032]
[1749512361758,0.38701743,110130.0,110120.0,0.6793032]
[1749512362055,0.99157743,110130.0,110120.0,0.6793032]
[1749512362363,0.92721743,110130.0,110120.0,0.81119281]
[1749512362551,0.92681743,110130.0,110120.0,0.87409281]
[1749512362757,0.92721743,110130.0,110120.0,0.87409281]
[1749512363066,0.89096671,110130.0,110120.0,0.93072223]
[1749512364062,0.88992671,110130.0,110120.0,0.87409281]
[1749512364261,0.67636581,110130.0,110120.0,0.87409281]
[1749512364457,0.67596581,110130.0,110120.0,0.9869802]
[1749512364864,0.85748671,110130.0,110120.0,0.9023303]
[1749512365264,0.85788671,110130.0,110120.0,0.9023303]
[1749512366662,0.85788671,110130.0,110120.0,0.77044069]
[1749512366864,0.85788671,110130.0,110120.0,0.9023303]
[1749512367364,0.85788671,110130.0,110120.0,0.77044069]
[1749512367567,0.85788671,110130.0,110120.0,0.9023303]
[1749512368561,0.85788671,110130.0,110120.0,0.98727628]
[1749512369161,0.85788671,110130.0,110120.0,0.9023303]
[1749512369357,0.89404211,110130.0,110120.0,0.74251623]
[1749512369559,1.02593172,110130.0,110120.0,0.71101623]
[1749512369767,1.05713172,110130.0,110120.0,0.64545963]
[1749512369971,0.95824211,110130.0,110120.0,0.64545963]
[1749512370164,0.92524211,110130.0,110120.0,0.67585963]
[1749512370357,0.92524211,110130.0,110120.0,0.70715963]
[1749512370763,0.92524211,110130.0,110120.0,0.71121623]
[1749512372169,0.29052211,110130.0,110120.0,0.71121623]
[1749512372471,0.89084211,110130.0,110120.0,0.84310584]
[1749512372673,0.70932121,110130.0,110120.0,0.84310584]
[1749512373373,0.70972121,110130.0,110120.0,0.84310584]
[1749512373565,0.89124251,110130.0,110120.0,0.84310584]
[1749512373969,0.89124251,110130.0,110120.0,0.75814291]
[1749512374166,0.29052251,110130.0,110120.0,0.6262533]
[1749512374368,0.89124251,110130.0,110120.0,0.7112379]
[1749512374667,0.23864121,110130.0,110120.0,0.75814291]
[1749512374970,0.10900121,110130.0,110120.0,0.75814291]
[1749512375161,0.89132231,110130.0,110120.0,0.75814291]
[1749512376275,0.67300581,110130.0,110120.0,0.8710303]
[1749512376477,0.67260581,110130.0,110120.0,0.8710303]
[1749512376675,0.67300581,110130.0,110120.0,0.8710303]
[1749512377477,0.85452701,110130.0,110120.0,0.73914069]
[1749512377676,0.85452701,110130.0,110120.0,0.8710303]
[1749512378278,0.85452701,110130.0,110120.0,0.73914069]
[1749512378472,0.85452701,110130.0,110120.0,0.8710303]
[1749512381380,0.85452691,110130.0,110120.0,0.8710303]
[1749512381983,0.25436691,110130.0,110120.0,0.8710303]
[1749512382182,0.85252691,110130.0,110120.0,0.8710303]
[1749512382487,0.67100581,110130.0,110120.0,0.8710303]
[1749512383581,0.85252701,110130.0,110120.0,0.8710303]
[1749512383980,0.20248581,110130.0,110120.0,0.8710303]
[1749512384181,0.20248581,110130.0,110120.0,0.73914069]
[1749512384381,0.20248581,110130.0,110120.0,0.8710303]
[1749512385487,0.38400701,110130.0,110120.0,0.73914069]
[1749512385683,0.38400701,110130.0,110120.0,0.8710303]
[1749512385887,0.20248581,110130.0,110120.0,0.8710303]
[1749512386286,0.38400701,110130.0,110120.0,0.8710303]
[1749512386589,0.51589662,110130.0,110120.0,0.73914069]
[1749512386783,0.54609662,110130.0,110120.0,0.70784069]
[1749512386985,0.57619662,110130.0,110120.0,0.70378409]
[1749512387180,0.61242532,110130.0,110120.0,0.70378409]
[1749512387385,0.61242532,110130.0,110120.0,0.67338409]
[1749512387594,0.64352532,110130.0,110120.0,0.64551082]
[1749512388186,0.64352532,110130.0,110120.0,0.64956742]
[1749512390088,0.64352532,110130.0,110120.0,0.64551082]
[1749512391186,0.64352532,110130.0,110120.0,0.64956742]
[1749512395190,0.64352532,110130.0,110120.0,0.10723072]
[1749512395598,0.38199571,110130.0,110120.0,0.28876832]
[1749512395783,0.10907451,110130.0,110120.0,0.78145793]
[1749512395983,0.23347451,110130.0,110120.0,0.77604159]
[1749512396194,0.19764581,110130.0,110120.0,0.9079312]
[1749512396583,0.19724581,110130.0,110120.0,0.9079312]
[1749512396786,0.07284581,110130.0,110120.0,0.9079312]
[1749512397187,0.19764581,110130.0,110120.0,0.79504381]
[1749512397392,0.19764581,110130.0,110120.0,0.93691307]
[1749512397587,0.19764581,110130.0,110120.0,0.79504381]
[1749512397891,0.19764581,110130.0,110120.0,0.93691307]
[1749512398189,0.19764581,110130.0,110120.0,0.90832611]
[1749512398392,0.19764581,110130.0,110120.0,0.89475576]
[1749512399295,0.37916701,110130.0,110120.0,0.89475576]
[1749512399995,0.37916701,110130.0,110120.0,1.35767576]
[1749512400589,0.37916701,110130.0,110120.0,0.89475576]
[1749512402694,0.19764581,110130.0,110120.0,0.89475576]
[1749512402892,0.19764581,110130.0,110120.0,0.92329307]
[1749512403499,0.19724581,110130.0,110120.0,0.92329307]
[1749512403898,0.19764581,110130.0,110120.0,0.92329307]
[1749512404094,0.07284581,110130.0,110120.0,0.92329307]
[1749512404299,0.19764581,110130.0,110120.0,1.05518268]
[1749512404494,0.19724581,110130.0,110120.0,0.92329307]
[1749512404687,0.19764581,110130.0,110120.0,1.05518268]
[1749512405092,0.19764581,110130.0,110120.0,0.92329307]
[1749512405298,0.19764581,110130.0,110120.0,0.91331342]
[1749512405500,0.19764581,110130.0,110120.0,0.78142381]
[1749512406293,0.19764581,110130.0,110120.0,0.91331342]
[1749512406794,0.19764581,110130.0,110120.0,1.05518268]
[1749512406998,0.19724581,110130.0,110120.0,1.11084963]
[1749512407200,0.19764581,110130.0,110120.0,1.11084963]
[1749512408095,0.19764581,110130.0,110120.0,1.0548693]
[1749512410498,0.12533637,110130.0,110120.0,1.1456773]
[1749512411702,0.07994699,110160.0,110150.0,0.1814882]
[1749512412002,0.09911237,110220.0,110180.0,0.3608]
[1749512412197,0.48481014,110230.0,110220.0,0.1813729]
[1749512412393,0.56712,110230.0,110220.0,0.5421729]
[1749512412599,0.56712,110230.0,110220.0,0.73060109]
[1749512412804,0.56712,110230.0,110220.0,0.59871148]
[1749512413098,0.44232,110230.0,110220.0,0.59871148]
[1749512413302,0.03263637,110240.0,110230.0,0.1813565]
[1749512413600,0.56915637,110240.0,110230.0,0.5421565]
[1749512413803,0.80324081,110240.0,110230.0,0.3608]
[1749512414099,0.1813565,110230.0,110220.0,0.3608]
[1749512414298,0.62446961,110230.0,110220.0,0.542173]
[1749512414494,0.96518961,110230.0,110220.0,0.542173]
[1749512414893,0.0634,110230.0,110220.0,0.546703]
[1749512415096,0.64792,110230.0,110220.0,0.67859261]
[1749512415297,0.0634,110230.0,110220.0,0.69069005]
[1749512415497,0.52940303,110240.0,110230.0,0.1813565]
[1749512415695,0.6386312,110240.0,110230.0,0.71894355]
[1749512415901,0.6386312,110240.0,110230.0,0.5749565]
[1749512416204,0.6390312,110240.0,110230.0,0.71894355]
[1749512416501,0.6390312,110240.0,110230.0,0.75204355]
[1749512417105,0.6350312,110240.0,110230.0,0.75204355]
[1749512417300,0.4833712,110240.0,110230.0,0.75204355]
[1749512417500,0.6041312,110240.0,110230.0,0.75204355]
[1749512418103,0.4833712,110240.0,110230.0,0.75204355]
[1749512418304,0.6040912,110240.0,110230.0,0.75204355]
[1749512418506,0.6036912,110240.0,110230.0,0.6080565]
[1749512418706,0.6036912,110240.0,110230.0,0.75204355]
[1749512418905,0.6040912,110240.0,110230.0,0.75204355]
[1749512419512,0.12125637,110240.0,110230.0,0.75204355]
[1749512419715,0.12085637,110240.0,110230.0,1.21096355]
[1749512419906,0.12125637,110240.0,110230.0,1.21096355]
[1749512420108,0.00053637,110240.0,110230.0,1.21096355]
[1749512420306,0.12125637,110240.0,110230.0,1.21096355]
[1749512420510,0.30259637,110240.0,110230.0,0.6080565]
[1749512420711,0.30259637,110240.0,110230.0,1.21060355]
[1749512420907,0.30259637,110240.0,110230.0,0.6080565]
[1749512421110,0.18187637,110240.0,110230.0,0.5421565]
[1749512421308,0.1813565,110230.0,110220.0,0.00453]
[1749512421505,0.41934355,110230.0,110220.0,0.00453]
[1749512421706,0.41934355,110230.0,110220.0,0.36533]
[1749512422012,0.2753565,110230.0,110220.0,0.5467029]
[1749512422208,0.3960765,110230.0,110220.0,0.5467029]
[1749512422811,0.3964765,110230.0,110220.0,0.5467029]
[1749512423006,0.2757565,110230.0,110220.0,0.5467029]
[1749512423207,0.8545565,110230.0,110220.0,0.5467029]
[1749512423611,0.99854355,110230.0,110220.0,0.5467029]
[1749512424717,0.99854355,110230.0,110220.0,0.36533]
[1749512424916,0.99854355,110230.0,110220.0,0.5467029]
[1749512425615,0.99854355,110230.0,110220.0,0.36533]
[1749512425914,0.99854355,110230.0,110220.0,0.5467029]
[1749512427814,0.8545565,110230.0,110220.0,0.5467029]
[1749512428009,0.99854355,110230.0,110220.0,0.5467029]
[1749512428813,0.99854355,110230.0,110220.0,0.36533]
[1749512429913,0.41974355,110230.0,110220.0,0.5467029]
[1749512430220,0.99662355,110230.0,110220.0,0.5467029]
[1749512430716,0.99662355,110230.0,110220.0,0.36533]
[1749512431211,0.99662355,110230.0,110220.0,0.00453]
[1749512431212,1.35742355,110230.0,110220.0,0.00453]
[1749512432617,0.99662355,110230.0,110220.0,0.00453]
[1749512433217,0.41974355,110230.0,110220.0,0.00453]
[1749512433417,0.99606355,110230.0,110220.0,0.36533]
[1749512434320,0.99570355,110230.0,110220.0,0.36533]
[1749512434618,0.99570355,110230.0,110220.0,0.3693866]
[1749512436118,0.41974355,110230.0,110220.0,0.3693866]
[1749512436319,0.99506355,110230.0,110220.0,0.3693866]
[1749512436513,0.41974355,110230.0,110220.0,0.3693866]
[1749512436720,0.99486355,110230.0,110220.0,0.3693866]
[1749512437514,0.99454355,110230.0,110220.0,0.3693866]
[1749512437819,0.8505565,110230.0,110220.0,0.3693866]
[1749512438024,0.99450355,110230.0,110220.0,0.3693866]
[1749512439620,0.41974355,110230.0,110220.0,0.5507595]
[1749512439922,0.99434355,110230.0,110220.0,0.5507595]
[1749512440314,0.41974355,110230.0,110220.0,0.5507595]
[1749512440521,0.59455319,110240.0,110230.0,0.1813565]
[1749512440716,1.01351683,110240.0,110230.0,0.5740565]
[1749512441223,1.15790388,110240.0,110230.0,0.5740565]
[1749512441418,1.19985319,110240.0,110230.0,0.5740565]
[1749512441623,1.19945319,110240.0,110230.0,0.5740565]
[1749512441817,1.19985319,110240.0,110230.0,0.6055565]
[1749512442019,1.19949319,110240.0,110230.0,0.6055565]
[1749512442414,0.62525319,110240.0,110230.0,0.6055565]
[1749512442621,1.15407469,110240.0,110230.0,0.6055565]
[1749512443125,1.16387469,110240.0,110230.0,0.6100865]
[1749512443421,0.49903859,110240.0,110230.0,0.6100865]
[1749512443626,0.42638928,110240.0,110230.0,0.6100865]
[1749512443827,1.00070928,110240.0,110230.0,0.6100865]
[1749512444125,1.00066928,110240.0,110230.0,0.6100865]
[1749512444526,0.40348223,110240.0,110230.0,0.6100865]
[1749512444732,0.85684223,110240.0,110230.0,0.6100865]
[1749512444926,0.85724223,110240.0,110230.0,0.6100865]
[1749512445725,0.65718314,110240.0,110230.0,0.6100865]
[1749512445926,0.83812314,110240.0,110230.0,0.66662508]
[1749512446228,0.08302314,110240.0,110230.0,0.66662508]
[1749512446425,0.08302314,110240.0,110230.0,0.75145411]
[1749512446630,0.20014314,110240.0,110230.0,0.69491553]
[1749512447024,0.19974314,110240.0,110230.0,0.80802091]
[1749512447327,0.20014314,110240.0,110230.0,0.80802091]
[1749512447523,0.38148314,110240.0,110230.0,0.69491553]
[1749512447827,0.38148314,110240.0,110230.0,0.80802091]
[1749512448333,0.20014314,110240.0,110230.0,0.80802091]
[1749512448630,0.38148314,110240.0,110230.0,0.80802091]
[1749512449129,0.38148314,110240.0,110230.0,0.69491553]
[1749512452433,0.38148314,110240.0,110230.0,0.75135379]
[1749512452927,0.88627019,110240.0,110230.0,0.00453]
[1749512453134,0.95077019,110240.0,110230.0,0.00453]
[1749512453333,0.95077019,110240.0,110230.0,0.1858865]
[1749512453526,0.58997019,110240.0,110230.0,0.1858865]
[1749512454933,0.44598314,110240.0,110230.0,0.2177865]
[1749512455127,0.58997019,110240.0,110230.0,0.2177865]
[1749512457136,0.55767019,110240.0,110230.0,0.2177865]
[1749512457435,0.55767019,110240.0,110230.0,0.2493865]
[1749512457736,0.55767019,110240.0,110230.0,0.6101865]
[1749512457929,1.01199019,110240.0,110230.0,0.6101865]
[1749512458128,0.44055019,110240.0,110230.0,0.66662476]
[1749512458338,1.01191019,110240.0,110230.0,0.66662476]
[1749512458833,0.97963019,110240.0,110230.0,0.66662476]
[1749512459035,0.97923019,110240.0,110230.0,0.67068136]
[1749512459235,0.9672678,110240.0,110230.0,0.67068136]
[1749512460051,0.9672678,110240.0,110230.0,0.66662476]
[1749512461647,0.9672678,110240.0,110230.0,0.48526826]
[1749512461841,1.0002678,110240.0,110230.0,0.30582476]
[1749512462041,1.0329678,110240.0,110230.0,0.09286826]
[1749512462644,1.0329678,110240.0,110230.0,0.2177865]
[1749512462945,1.0329678,110240.0,110230.0,0.5785865]
[1749512463142,1.0329678,110240.0,110230.0,0.63502476]
[1749512463847,0.9993078,110240.0,110230.0,0.66822476]
[1749512464946,0.9993078,110240.0,110230.0,0.75305379]
[1749512464947,0.3959878,110240.0,110230.0,0.75305379]
[1749512465148,0.08302314,110240.0,110230.0,0.75305379]
[1749512465447,0.65338314,110240.0,110230.0,0.82824019]
[1749512465646,0.65378314,110240.0,110230.0,0.82824019]
[1749512465947,0.65378314,110240.0,110230.0,0.69661553]
[1749512466149,0.83512324,110240.0,110230.0,0.69661553]
[1749512466549,0.9667479,110240.0,110230.0,0.69661553]
[1749512466948,0.83512324,110240.0,110230.0,0.69661553]
[1749512469448,0.83512324,110240.0,110230.0,0.72489188]
[1749512469643,0.83472324,110240.0,110230.0,0.72489188]
[1749512470648,0.83472324,110240.0,110230.0,0.6117865]
[1749512472354,0.65338314,110240.0,110230.0,0.6117865]
[1749512472556,0.65294314,110240.0,110230.0,0.6117865]
[1749512472750,0.65294314,110240.0,110230.0,0.74341116]
[1749512472955,0.20010314,110240.0,110230.0,0.74341116]
[1749512473155,0.65314314,110240.0,110230.0,0.74341116]
[1749512473654,0.65306314,110240.0,110230.0,0.85651654]
[1749512474050,0.65266314,110240.0,110230.0,0.85651654]
[1749512474248,0.65306314,110240.0,110230.0,0.85651654]
[1749512475558,0.08302314,110240.0,110230.0,0.72489188]
[1749512475752,0.08302314,110240.0,110230.0,0.85651654]
[1749512475946,0.20010314,110240.0,110230.0,0.85651654]
[1749512478853,0.5130679,110240.0,110230.0,0.72489188]
[1749512479661,0.5130679,110240.0,110230.0,0.6117865]
[1749512479859,0.5130679,110240.0,110230.0,0.6253865]
[1749512480160,0.38144324,110240.0,110230.0,0.73849188]
[1749512481762,0.38144324,110240.0,110230.0,0.73349188]
[1749512481956,0.65298314,110240.0,110230.0,0.86511654]
[1749512482156,0.65302314,110240.0,110230.0,0.86511654]
[1749512483161,0.08302314,110240.0,110230.0,0.86511654]
[1749512483363,0.19974314,110240.0,110230.0,0.75201116]
[1749512483553,0.19934314,110240.0,110230.0,0.75201116]
[1749512483754,0.19974314,110240.0,110230.0,0.75201116]
[1749512484062,0.19974314,110240.0,110230.0,0.89339763]
[1749512484257,0.19974314,110240.0,110230.0,0.76177297]
[1749512484457,0.19974314,110240.0,110230.0,0.89339763]
[1749512486964,0.12705637,110240.0,110230.0,0.89339763]
[1749512487556,0.12705637,110240.0,110230.0,0.90146142]
[1749512488965,0.12705637,110240.0,110230.0,0.76177297]
[1749512489175,0.12705637,110240.0,110230.0,0.75201116]
[1749512489670,0.12705637,110240.0,110230.0,0.6203865]
[1749512489875,0.16319972,110240.0,110230.0,0.75201116]
[1749512491574,0.30839657,110240.0,110230.0,0.73327088]
[1749512492881,0.12705637,110240.0,110230.0,0.73327088]
[1749512493277,0.30839657,110240.0,110230.0,0.73327088]
[1749512494286,0.30839657,110240.0,110230.0,0.6203865]
[1749512494675,0.30839657,110240.0,110230.0,0.73335456]
[1749512495283,0.12705637,110240.0,110230.0,0.6203865]
[1749512495582,0.30839657,110240.0,110230.0,0.6203865]
[1749512495781,0.30839657,110240.0,110230.0,0.76177297]
[1749512495983,0.30839657,110240.0,110230.0,0.6203865]
[1749512496182,0.30839657,110240.0,110230.0,0.76177297]
[1749512496385,0.25868103,110240.0,110230.0,0.76177297]
[1749512496579,0.47272123,110240.0,110230.0,0.76177297]
[1749512496781,0.29138103,110240.0,110230.0,0.76177297]
[1749512496982,0.34109657,110240.0,110230.0,0.76177297]
[1749512497486,0.37229657,110240.0,110230.0,0.72857297]
[1749512500275,0.50392123,110240.0,110230.0,0.72857297]
[1749512500481,0.19095637,110240.0,110230.0,0.72857297]
[1749512500675,0.12705637,110240.0,110230.0,0.86019763]
[1749512500887,0.12705637,110240.0,110230.0,0.89109763]
[1749512501783,0.01033637,110240.0,110230.0,0.89109763]
[1749512502087,0.12705637,110240.0,110230.0,0.89109763]
[1749512502679,0.01033637,110240.0,110230.0,0.89109763]
[1749512502884,0.12705637,110240.0,110230.0,0.89109763]
[1749512503784,0.01033637,110240.0,110230.0,0.89109763]
[1749512503993,0.00993637,110240.0,110230.0,1.34225763]
[1749512504182,0.01033637,110240.0,110230.0,1.34225763]
[1749512504377,0.12705637,110240.0,110230.0,1.39881222]
[1749512504577,0.12665637,110240.0,110230.0,1.39881222]
[1749512504786,0.12705637,110240.0,110230.0,1.39881222]
[1749512505285,0.12705637,110240.0,110230.0,1.34207405]
[1749512506587,0.12705637,110240.0,110230.0,1.21044939]
[1749512507291,0.12705637,110240.0,110230.0,1.34207405]
[1749512507490,0.12705637,110240.0,110230.0,1.20087116]
[1749512507691,0.12705637,110240.0,110230.0,1.34207405]
[1749512507990,0.12705637,110240.0,110230.0,1.0688065]
[1749512508191,0.12705637,110240.0,110230.0,1.21000939]
[1749512509194,0.12705637,110240.0,110230.0,1.34163405]
[1749512509691,0.13111297,110240.0,110230.0,1.34163405]
[1749512509892,0.13111297,110240.0,110230.0,0.89091405]
[1749512510588,0.13111297,110240.0,110230.0,1.08885511]
[1749512510783,0.31245317,110240.0,110230.0,0.92900564]
[1749512510985,0.31245317,110240.0,110230.0,0.75930327]
[1749512512786,0.31245317,110240.0,110230.0,0.6180865]
[1749512513085,0.53952619,110250.0,110240.0,3.86888703]
[1749512513281,0.65508619,110250.0,110240.0,4.22968703]
[1749512513792,0.88315633,110250.0,110240.0,4.34268527]
[1749512513997,1.01478099,110250.0,110240.0,4.34268527]
[1749512514190,0.67187263,110250.0,110240.0,4.50650993]
[1749512514391,0.10551263,110250.0,110240.0,4.57110993]
[1749512514589,0.07321263,110250.0,110240.0,4.57110993]
[1749512514790,0.1156,110250.0,110240.0,4.57110993]
[1749512514992,0.1156,110250.0,110240.0,4.43948527]
[1749512515294,1.36684605,110260.0,110250.0,0.1813237]
[1749512515599,1.55470427,110260.0,110250.0,0.62685933]
[1749512516189,1.46387977,110260.0,110250.0,0.62685933]
[1749512516492,1.46387977,110260.0,110250.0,0.63185933]
[1749512516795,1.46387977,110260.0,110250.0,0.64545933]
[1749512516995,1.46387977,110260.0,110250.0,0.65045933]
[1749512520286,0.89779977,110260.0,110250.0,0.65045933]
[1749512520490,1.46279977,110260.0,110250.0,0.65045933]
[1749512521194,1.28149247,110260.0,110250.0,0.65045933]
[1749512521392,1.46279967,110260.0,110250.0,0.65045933]
[1749512521594,1.46255967,110260.0,110250.0,0.65045933]
[1749512523497,0.89779967,110260.0,110250.0,0.65045933]
[1749512523798,1.46255967,110260.0,110250.0,0.65045933]
[1749512524702,0.54650914,110260.0,110250.0,0.78208399]
[1749512524997,1.05252574,110260.0,110250.0,0.8103466]
[1749512525195,1.05252574,110260.0,110250.0,0.70992194]
[1749512527490,1.05252574,110260.0,110250.0,0.74252194]
[1749512527692,1.23383294,110260.0,110250.0,0.74252194]
[1749512528397,1.05252574,110260.0,110250.0,0.74252194]
[1749512528791,1.23383294,110260.0,110250.0,0.74252194]
[1749512529193,0.60332574,110260.0,110250.0,0.74252194]
[1749512529995,0.60332574,110260.0,110250.0,0.8741466]
[1749512530196,0.60332574,110260.0,110250.0,0.77074047]
[1749512530494,0.53106752,110260.0,110250.0,0.77074047]
[1749512530694,0.84399938,110260.0,110250.0,0.77074047]
[1749512530891,0.71277472,110260.0,110250.0,1.10034047]
[1749512531095,0.80507472,110260.0,110250.0,1.07204066]
[1749512531305,0.62376752,110260.0,110250.0,1.07204066]
[1749512531495,0.74397472,110260.0,110250.0,1.06704066]
[1749512531701,0.74397472,110260.0,110250.0,1.09754066]
[1749512532102,1.02874752,110260.0,110250.0,1.09254066]
[1749512532302,0.53642752,110260.0,110250.0,1.09254066]
[1749512532501,0.53602752,110260.0,110250.0,1.09254066]
[1749512532706,0.53642752,110260.0,110250.0,1.09254066]
[1749512533005,0.53642752,110260.0,110250.0,0.9796237]
[1749512533202,0.53642752,110260.0,110250.0,1.36534799]
[1749512533406,0.53642752,110260.0,110250.0,1.09250656]
[1749512534006,0.41590752,110260.0,110250.0,1.09250656]
[1749512534301,0.54194752,110260.0,110250.0,1.09250656]
[1749512534509,0.54154752,110260.0,110250.0,1.09250656]
[1749512534807,0.54194752,110260.0,110250.0,1.22413122]
[1749512535004,0.54194752,110260.0,110250.0,1.09250656]
[1749512535595,0.54194752,110260.0,110250.0,1.22413122]
[1749512535797,0.54194752,110260.0,110250.0,1.09250656]
[1749512536698,0.54194752,110260.0,110250.0,1.22413122]
[1749512537407,0.54194752,110260.0,110250.0,0.9796237]
[1749512537608,0.41590752,110260.0,110250.0,1.25246513]
[1749512538108,0.41550752,110260.0,110250.0,1.25246513]
[1749512538403,0.41590752,110260.0,110250.0,1.25246513]
[1749512538596,0.41590752,110260.0,110250.0,1.12084047]
[1749512538906,0.41590752,110260.0,110250.0,0.9796237]
[1749512539108,0.41590752,110260.0,110250.0,1.22404681]
[1749512539296,0.41590752,110260.0,110250.0,1.09242215]
[1749512539499,0.41590752,110260.0,110250.0,1.11124836]
[1749512539695,0.41590752,110260.0,110250.0,0.9796237]
[1749512539899,0.41590752,110260.0,110250.0,1.25246513]
[1749512540105,0.41590752,110260.0,110250.0,1.59816047]
[1749512540307,0.41590752,110260.0,110250.0,1.72978513]
[1749512540706,0.41590752,110260.0,110250.0,1.59816047]
[1749512540910,0.41590752,110260.0,110250.0,1.72978513]
[1749512541911,0.41590752,110260.0,110250.0,1.59816047]
[1749512542410,0.41590752,110260.0,110250.0,1.72978513]
[1749512543913,0.41590752,110260.0,110250.0,1.59816047]
[1749512544114,0.41590752,110260.0,110250.0,1.72978513]
[1749512546916,0.41590752,110260.0,110250.0,1.59816047]
[1749512547116,0.41590752,110260.0,110250.0,1.72978513]
[1749512547914,0.41590752,110260.0,110250.0,1.59816047]
[1749512548116,0.41590752,110260.0,110250.0,1.72978513]
[1749512549209,0.41590752,110260.0,110250.0,1.72810513]
[1749512549414,0.54194752,110260.0,110250.0,1.6997322]
[1749512550612,0.54194752,110260.0,110250.0,1.2240922]
[1749512550819,0.54194752,110260.0,110250.0,1.6992522]
[1749512551921,0.54194752,110260.0,110250.0,1.58640836]
[1749512552218,0.54194752,110260.0,110250.0,1.72762513]
[1749512554124,0.54194752,110260.0,110250.0,1.59600047]
[1749512554418,0.54194752,110260.0,110250.0,1.72762513]
[1749512554619,0.54194752,110260.0,110250.0,1.25246513]
[1749512556422,0.54194752,110260.0,110250.0,1.12084047]
[1749512556610,0.54194752,110260.0,110250.0,1.25246513]
[1749512556810,0.54194752,110260.0,110250.0,1.73014513]
[1749512557619,0.54194752,110260.0,110250.0,1.59852047]
[1749512557821,0.54194752,110260.0,110250.0,1.73014513]
[1749512559319,0.54194752,110260.0,110250.0,1.59852047]
[1749512559523,0.54194752,110260.0,110250.0,1.73014513]
[1749512559824,0.54194752,110260.0,110250.0,1.59852047]
[1749512560025,0.54194752,110260.0,110250.0,1.73014513]
[1749512560726,0.54194752,110260.0,110250.0,1.73467513]
[1749512561225,0.13058752,110260.0,110250.0,1.93261619]
[1749512561524,0.13058752,110260.0,110250.0,1.79139942]
[1749512563224,0.13058752,110260.0,110250.0,1.79132286]
[1749512563530,0.13058752,110260.0,110250.0,1.73474628]
[1749512563922,0.13058752,110260.0,110250.0,1.93268734]
[1749512564326,0.13058752,110260.0,110250.0,1.73474628]
[1749512564724,0.13058752,110260.0,110250.0,1.5933818]
[1749512564923,0.00454752,110260.0,110250.0,1.86629957]
[1749512565129,0.13534752,110260.0,110250.0,1.73475147]
[1749512565524,0.13494752,110260.0,110250.0,1.73475147]
[1749512565732,0.13534752,110260.0,110250.0,1.73475147]
[1749512566026,0.13534752,110260.0,110250.0,1.60320337]
[1749512566229,0.13534752,110260.0,110250.0,1.73475147]
[1749512568126,0.13534752,110260.0,110250.0,1.5933818]
[1749512568625,0.13534752,110260.0,110250.0,1.4618337]
[1749512568826,0.13534752,110260.0,110250.0,1.5933818]
[1749512569226,0.13534752,110260.0,110250.0,1.25707147]
[1749512569431,0.13534752,110260.0,110250.0,1.60048337]
[1749512569632,0.13534752,110260.0,110250.0,1.73203147]
[1749512569931,0.13534752,110260.0,110250.0,1.60048337]
[1749512570131,0.13534752,110260.0,110250.0,1.73203147]
[1749512570935,0.44820282,110260.0,110250.0,1.25707147]
[1749512571120,0.47890282,110260.0,110250.0,0.9841537]
[1749512571325,1.08461092,110260.0,110250.0,0.5602537]
[1749512571527,1.14901092,110260.0,110250.0,0.67340561]
[1749512572132,0.88591472,110260.0,110250.0,0.80495371]
[1749512572324,1.01746282,110260.0,110250.0,0.80495371]
[1749512572724,0.88591472,110260.0,110250.0,0.80495371]
[1749512572925,0.00454752,110260.0,110250.0,0.67340561]
[1749512573235,0.13534752,110260.0,110250.0,1.1171018]
[1749512573435,0.44780282,110260.0,110250.0,1.1171018]
[1749512573631,0.47820282,110260.0,110250.0,1.1171018]
[1749512573833,0.47820282,110260.0,110250.0,0.9855537]
[1749512574025,0.47820282,110260.0,110250.0,1.1171018]
[1749512574228,0.34740282,110260.0,110250.0,1.1171018]
[1749512574437,0.95876282,110260.0,110250.0,1.1171018]
[1749512574628,0.98996282,110260.0,110250.0,1.1171018]
[1749512576531,0.98996282,110260.0,110250.0,1.23025371]
[1749512576727,0.85841472,110260.0,110250.0,1.23025371]
[1749512576932,0.85841472,110260.0,110250.0,1.09870561]
[1749512577233,0.98996282,110260.0,110250.0,1.23025371]
[1749512577935,0.98996282,110260.0,110250.0,1.09870561]
[1749512578138,0.98996282,110260.0,110250.0,1.16575371]
[1749512578337,1.02016282,110260.0,110250.0,1.16575371]
[1749512579238,1.02016282,110260.0,110250.0,1.0526018]
[1749512579536,1.14765432,110260.0,110250.0,0.9210537]
[1749512579742,0.88455812,110260.0,110250.0,1.0058027]
[1749512579945,1.01610622,110260.0,110250.0,1.1373508]
[1749512580547,1.01610622,110260.0,110250.0,1.25050271]
[1749512580746,1.01610622,110260.0,110250.0,1.11895461]
[1749512581036,0.88455812,110260.0,110250.0,1.25050271]
[1749512581240,1.01610622,110260.0,110250.0,1.03420561]
[1749512581434,1.01610622,110260.0,110250.0,1.16575371]
[1749512581636,0.88455812,110260.0,110250.0,1.16575371]
[1749512581845,1.01610622,110260.0,110250.0,1.16575371]
[1749512582445,0.88455812,110260.0,110250.0,1.03420561]
[1749512582743,1.01610622,110260.0,110250.0,1.06620561]
[1749512582941,1.01610622,110260.0,110250.0,1.16933166]
[1749512583651,1.01610622,110260.0,110250.0,0.82445986]
[1749512583652,1.2563641,110260.0,110250.0,0.82445986]
[1749512583848,2.04115433,110260.0,110250.0,0.06050818]
[1749512584149,2.09774384,110260.0,110250.0,0.06050818]
[1749512584455,2.09774384,110260.0,110250.0,0.01813]
[1749512584838,1.92375361,110260.0,110250.0,0.01813]
[1749512585438,1.96614225,110260.0,110250.0,0.01813]
[1749512585948,0.86879976,110270.0,110260.0,1.72140458]
[1749512586249,1.48451196,110270.0,110260.0,1.72140458]
[1749512586448,1.73451196,110270.0,110260.0,1.72140458]
[1749512587246,1.22085576,110270.0,110260.0,1.72140458]
[1749512587450,0.64615947,110270.0,110260.0,1.90271188]
[1749512587652,1.26839947,110270.0,110260.0,1.90271188]
[1749512588444,1.26839947,110270.0,110260.0,1.72140458]
[1749512588651,1.26799947,110270.0,110260.0,1.72140458]
[1749512588853,1.26799947,110270.0,110260.0,1.73500458]
[1749512588854,1.26839947,110270.0,110260.0,1.73500458]
[1749512589153,1.36049947,110270.0,110260.0,1.73500458]
[1749512590048,1.36049947,110270.0,110260.0,2.09580458]
[1749512591348,0.87425947,110270.0,110260.0,2.27711258]
[1749512591554,1.29865147,110270.0,110260.0,2.30871258]
[1749512591854,1.20796347,110270.0,110260.0,2.37121258]
[1749512592150,0.72376347,110270.0,110260.0,2.37121258]
[1749512592352,1.20764347,110270.0,110260.0,2.41812076]
[1749512592554,1.20724347,110270.0,110260.0,2.23681276]
[1749512592750,1.07604765,110270.0,110260.0,2.41812076]
[1749512592951,1.20764347,110270.0,110260.0,2.41812076]
[1749512593853,0.57372615,110270.0,110260.0,2.41812076]
[1749512594054,1.18820197,110270.0,110260.0,2.41812076]
[1749512594654,1.18820197,110270.0,110260.0,1.87601276]
[1749512594955,1.18820197,110270.0,110260.0,2.23681276]
[1749512595154,1.18820197,110270.0,110260.0,2.41812076]
[1749512595550,1.05660615,110270.0,110260.0,2.41812076]
[1749512595754,1.18820197,110270.0,110260.0,2.41812076]
[1749512596150,1.18820197,110270.0,110260.0,2.23681276]
[1749512596757,1.18820197,110270.0,110260.0,2.41812076]